[Event "FIDE WCCC U10 2018"]
[Site "Santiago de Compostela"]
[Date "2018.11.10"]
[Round "6"]
[White "Vetokhin, Savva"]
[Black "Nemsadze, Daviti"]
[Result "0-1"]
[ECO "C07"]
[WhiteElo "1874"]
[BlackElo "1762"]
[Annotator "NA"]
[PlyCount "112"]
[EventDate "2018.11.04"]
[EventType "swiss"]
[EventCountry "ESP"]
[SourceTitle "playchess.com"]
[Source "ChessBase"]
[SourceQuality "1"]
[TimeControl "40/5400+30:1800+30"]

1. e4 {[%emt 0:00:00]} e6 {[%emt 0:00:00]} 2. d4 {[%emt 0:00:00]} d5 {[%emt 0:00:10]} 3. Nd2 {[%emt 0:00:00]} c5 {[%emt 0:08:02]} 4. Ngf3 {[%emt 0:00:00]} Nf6 {[%emt 0:01:17]} 5. exd5 exd5 {[%emt 0:05:06]} 6. dxc5 $11 {[%emt 0:07:42]} Bxc5 {[%emt 0:01:53]} 7. Nb3 Bb6 {[%emt 0:06:47]} 8. Be2 {[%emt 0:10:39]} O-O {[%emt 0:00:13]} 9. O-O {[%emt 0:00:05]} h6 {[%emt 0:00:35]} 10. c3 {[%emt 0:00:39]} Bf5 {[%emt 0:02:19]} 11. Nbd4 {[%emt 0:06:31]} Be4 {[%emt 0:00:42]} 12. h3 {[%emt 0:07:38]} Nc6 {[%emt 0:01:36]} 13. Be3 {[%emt 0:02:06]} Rc8 {[%emt 0:06:21]} 14. Bd3 {[%emt 0:17:07]} Na5 {[%emt 0:13:28]} 15. Rb1 {[%emt 0:07:50]} Nc4 {[%emt 0:03:38]} 16. Bf4 {[%emt 0:00:41]} Bxd3 {[%emt 0:12:11]} 17. Qxd3 {[%emt 0:00:20]} Ne4 {[%emt 0:00:11]} 18. Ne5 {[%emt 0:08:40]} Bc7 {[%emt 0:04:23]} 19. Nxc4 {[%emt 0:00:23]} Bxf4 {[%emt 0:00:05]} 20. Ne3 {[%emt 0:00:08]} Re8 {[%emt 0:00:39]} 21. Ndc2 {[%emt 0:04:10]} Qg5 22. Rbe1 {[%emt 0:03:48]} Rcd8 {[%emt 0:10:52]} 23. Re2 {[%emt 0:07:53]} Rd6 {[%emt 0:01:26]} 24. Rfe1 {[%emt 0:02:12]} Rg6 {[%emt 0:03:02]} 25. Qxd5 {[%emt 0:02:42]} Re5 {[%emt 0:00:05]} 26. Qd4 {[%emt 0:01:35]} h5 {[%emt 0:06:00]} 27. c4 {[%emt 0:01:01]} Nd6 {[%emt 0:02:35]} 28. f3 Rge6 {[%emt 0:02:29]} 29. Qd3 {[%emt 0:03:01]} Bg3 {[%emt 0:02:15]} 30. c5 {[%emt 0:02:26]} Bxe1 {[%emt 0:00:35]} 31. cxd6 {[%emt 0:00:09]} Ba5 {[%emt 0:00:15]} 32. b4 {[%emt 0:00:43]} Bb6 33. d7 {[%emt 0:02:36]} Rd5 {[%emt 0:01:05]} 34. Qc3 {[%emt 0:01:56]} Rxd7 {[%emt 0:00:08]} 35. Qc8+ {[%emt 0:00:16]} Qd8 {[%emt 0:00:08]} 36. Qc3 {[%emt 0:00:38]} Rd3 {[%emt 0:00:21]} 37. Qe1 {[%emt 0:01:22]} Bxe3+ {[%emt 0:00:19]} 38. Nxe3 {[%emt 0:00:08]} Qd4 {[%emt 0:00:04]} 39. Kf2 {[%emt 0:00:10]} f5 {[%emt 0:00:13]} 40. g3 {[%emt 0:00:00]} h4 {[%emt 0:00:00]} 41. Qc1 {[%emt 0:00:23]} hxg3+ {[%emt 0:00:28]} 42. Kg2 {[%emt 0:00:37]} Rdxe3 {[%emt 0:00:13]} 43. Qc8+ {[%emt 0:00:07]} Re8 {[%emt 0:00:03]} 44. Qxe8+ {[%emt 0:00:05]} Rxe8 {[%emt 0:00:02]} 45. Rxe8+ {[%emt 0:00:07]} Kf7 {[%emt 0:00:02]} 46. Re2 {[%emt 0:00:13]} f4 {[%emt 0:00:04]} 47. a3 {[%emt 0:00:05]} Qd3 {[%emt 0:00:14]} 48. Ra2 {[%emt 0:00:04]} Ke6 {[%emt 0:00:05]} 49. h4 {[%emt 0:00:04]} Kd5 {[%emt 0:00:03]} 50. h5 {[%emt 0:00:10]} Kc4 {[%emt 0:00:07]} 51. h6 {[%emt 0:00:10]} gxh6 {[%emt 0:00:03]} 52. Rb2 {[%emt 0:00:23]} Qxa3 {[%emt 0:00:10]} 53. Rc2+ {[%emt 0:00:04]} Kd3 {[%emt 0:00:09]} 54. Rc7 Qb2+ {[%emt 0:00:03]} 55. Kh3 {[%emt 0:00:11]} Qh2+ {[%emt 0:00:03]} 56. Kg4 {[%emt 0:00:07]} g2 {[%emt 0:00:05]} 0-1

[Event "FIDE WCCC U10 2018"]
[Site "Santiago de Compostela"]
[Date "2018.11.10"]
[Round "6"]
[White "Seemann, Jakub"]
[Black "Volkov, Maksim"]
[Result "0-1"]
[ECO "C08"]
[WhiteElo "1869"]
[BlackElo "1971"]
[Annotator "NA"]
[PlyCount "86"]
[EventDate "2018.11.04"]
[EventType "swiss"]
[EventCountry "ESP"]
[SourceTitle "playchess.com"]
[Source "ChessBase"]
[SourceQuality "1"]
[TimeControl "40/5400+30:1800+30"]

1. e4 {[%emt 0:00:00]} e6 {[%emt 0:00:00]} 2. d4 {[%emt 0:00:00]} d5 {[%emt 0:00:00]} 3. Nd2 {[%emt 0:00:00]} c5 {[%emt 0:00:02]} 4. exd5 {[%emt 0:00:00]} exd5 {[%emt 0:00:04]} 5. Ngf3 {[%emt 0:00:27]} a6 {[%emt 0:00:12]} 6. Be2 {[%emt 0:03:07]} c4 {[%emt 0:00:08]} 7. O-O {[%emt 0:00:39]} Bd6 {[%emt 0:01:11]} 8. Re1 {[%emt 0:01:02]} Ne7 {[%emt 0:00:46]} 9. a4 {[%emt 0:06:21]} O-O {[%emt 0:01:31]} 10. b3 {[%emt 0:01:01]} cxb3 {[%emt 0:00:33]} 11. c3 {[%emt 0:02:21]} Bf5 12. Qxb3 $11 {[%emt 0:01:01]} Nbc6 {[%emt 0:05:39]} 13. Ba3 {[%emt 0:01:47]} Na5 {[%emt 0:03:04]} 14. Qb2 {[%emt 0:00:31]} Rc8 {[%emt 0:01:03]} 15. Bxd6 {[%emt 0:01:47]} Qxd6 {[%emt 0:00:07]} 16. Nb3 {[%emt 0:06:05]} Qb6 {[%emt 0:02:43]} 17. Bd1 {[%emt 0:05:51]} Ng6 {[%emt 0:01:43]} 18. Ra2 {[%emt 0:10:57]} Nf4 {[%emt 0:08:15]} 19. Nc5 {[%emt 0:04:53]} Qxb2 {[%emt 0:08:03]} 20. Rxb2 {[%emt 0:01:02]} Rxc5 {[%emt 0:00:24]} 21. dxc5 {[%emt 0:00:11]} Nd3 22. Rbe2 {[%emt 0:00:26]} Nxe1 {[%emt 0:00:15]} 23. Rxe1 {[%emt 0:00:11]} Rc8 {[%emt 0:00:47]} 24. Nd4 {[%emt 0:02:25]} Be4 {[%emt 0:04:13]} 25. f3 {[%emt 0:02:55]} Bd3 {[%emt 0:01:00]} 26. Nb3 {[%emt 0:11:11]} Nc6 {[%emt 0:03:45]} 27. Nd4 {[%emt 0:02:55]} Kf8 {[%emt 0:01:25]} 28. Be2 {[%emt 0:05:38]} Bg6 {[%emt 0:05:02]} 29. g4 Ne7 {[%emt 0:03:03]} 30. Nb3 {[%emt 0:13:07]} Bc2 {[%emt 0:02:20]} 31. Nd4 {[%emt 0:02:02]} Bxa4 {[%emt 0:00:15]} 32. Rb1 {[%emt 0:00:17]} Rc7 {[%emt 0:01:41]} 33. Kf2 {[%emt 0:03:51]} Bd7 {[%emt 0:03:47]} 34. Nb3 {[%emt 0:03:08]} Ng6 {[%emt 0:06:36]} 35. Ke3 {[%emt 0:01:41]} Bc8 {[%emt 0:01:40]} 36. Kd4 {[%emt 0:01:37]} Nf4 {[%emt 0:01:18]} 37. Bf1 {[%emt 0:00:37]} g5 {[%emt 0:01:15]} 38. Bd3 {[%emt 0:00:56]} Kg7 {[%emt 0:00:41]} 39. Bc2 {[%emt 0:01:30]} Bd7 {[%emt 0:01:53]} 40. Re1 {[%emt 0:00:00]} Ba4 {[%emt 0:00:00]} 41. Rb1 {[%emt 0:10:01]} Re7 {[%emt 0:05:10]} 42. Bf5 {[%emt 0:03:02]} Ne2+ {[%emt 0:00:46]} 43. Kxd5 Nxc3+ 0-1

[Event "FIDE WCCC U10 2018"]
[Site "Santiago de Compostela"]
[Date "2018.11.10"]
[Round "6"]
[White "Dang, Anh Minh"]
[Black "Sloan, Jed"]
[Result "1-0"]
[ECO "A40"]
[WhiteElo "1817"]
[BlackElo "1556"]
[Annotator "NA"]
[PlyCount "107"]
[EventDate "2018.11.04"]
[EventType "swiss"]
[EventCountry "ESP"]
[SourceTitle "playchess.com"]
[Source "ChessBase"]
[SourceQuality "1"]
[TimeControl "40/5400+30:1800+30"]

1. d4 {[%emt 0:00:00]} Nf6 {[%emt 0:00:00]} 2. c4 {[%emt 0:00:00]} e6 {[%emt 0:00:00]} 3. g3 {[%emt 0:00:00]} Bb4+ {[%emt 0:00:11]} 4. Bd2 {[%emt 0:00:00]} c5 {[%emt 0:00:30]} 5. Bxb4 {[%emt 0:00:13]} cxb4 {[%emt 0:00:12]} 6. Bg2 {[%emt 0:00:17]} O-O {[%emt 0:00:38]} 7. e4 {[%emt 0:00:47]} d6 {[%emt 0:00:34]} 8. Ne2 {[%emt 0:00:29]} e5 {[%emt 0:00:53]} 9. O-O {[%emt 0:00:37]} a5 {[%emt 0:01:15]} 10. Nd2 {[%emt 0:00:55]} Nc6 {[%emt 0:02:08]} 11. Rc1 $11 {[%emt 0:10:55]} Re8 {[%emt 0:07:42]} 12. d5 {[%emt 0:01:53]} Nb8 {[%emt 0:00:45]} 13. c5 {[%emt 0:00:20]} dxc5 {[%emt 0:01:21]} 14. Rxc5 {[%emt 0:00:09]} b6 {[%emt 0:04:24]} 15. Rc1 {[%emt 0:02:09]} Ba6 {[%emt 0:00:35]} 16. Nc4 {[%emt 0:01:36]} Bxc4 {[%emt 0:01:05]} 17. Rxc4 {[%emt 0:00:17]} Na6 {[%emt 0:01:39]} 18. Nc1 {[%emt 0:05:53]} Nc5 {[%emt 0:03:45]} 19. Nd3 {[%emt 0:01:40]} Nfd7 {[%emt 0:01:52]} 20. Bh3 {[%emt 0:07:38]} Nxd3 {[%emt 0:00:46]} 21. Qxd3 {[%emt 0:00:11]} Nc5 {[%emt 0:00:13]} 22. Qe3 {[%emt 0:01:32]} Qd6 {[%emt 0:02:08]} 23. Rfc1 {[%emt 0:03:47]} Rad8 {[%emt 0:01:44]} 24. a3 {[%emt 0:09:19]} b3 {[%emt 0:01:05]} 25. a4 {[%emt 0:04:02]} h5 {[%emt 0:08:44]} 26. Bg2 {[%emt 0:13:39]} Qg6 {[%emt 0:01:38]} 27. Bh3 {[%emt 0:06:55]} Qd6 {[%emt 0:00:52]} 28. Rxc5 {[%emt 0:00:36]} bxc5 {[%emt 0:00:23]} 29. Rxc5 {[%emt 0:00:07]} Qb6 {[%emt 0:05:24]} 30. Qc3 {[%emt 0:00:34]} Qb4 {[%emt 0:01:04]} 31. Qxb4 {[%emt 0:00:54]} axb4 {[%emt 0:00:11]} 32. Kf1 {[%emt 0:01:06]} Kf8 {[%emt 0:09:32]} 33. Ke2 {[%emt 0:00:06]} Ke7 {[%emt 0:00:55]} 34. Kd3 {[%emt 0:00:29]} Ra8 {[%emt 0:00:49]} 35. a5 {[%emt 0:00:16]} Reb8 {[%emt 0:03:20]} 36. Kc4 {[%emt 0:00:39]} h4 {[%emt 0:12:51]} 37. Bg4 {[%emt 0:03:07]} hxg3 {[%emt 0:03:22]} 38. hxg3 {[%emt 0:00:27]} g6 {[%emt 0:02:38]} 39. Kxb3 {[%emt 0:04:19]} Ra7 {[%emt 0:04:46]} 40. Kc4 {[%emt 0:00:00]} Raa8 {[%emt 0:00:00]} 41. b3 {[%emt 0:05:03]} f6 {[%emt 0:08:22]} 42. Be6 {[%emt 0:02:26]} Rf8 {[%emt 0:02:32]} 43. Rc7+ {[%emt 0:02:09]} Kd8 {[%emt 0:00:35]} 44. d6 {[%emt 0:01:24]} f5 {[%emt 0:00:27]} 45. exf5 {[%emt 0:00:18]} gxf5 {[%emt 0:00:09]} 46. a6 {[%emt 0:00:29]} Rf6 {[%emt 0:03:26]} 47. Kd5 {[%emt 0:01:22]} Rxe6 {[%emt 0:02:13]} 48. Kxe6 {[%emt 0:00:07]} Rxa6 {[%emt 0:00:03]} 49. Rh7 {[%emt 0:00:12]} Kc8 {[%emt 0:00:04]} 50. Rh8+ {[%emt 0:00:04]} Kb7 {[%emt 0:00:07]} 51. Ke7 {[%emt 0:00:07]} Kc6 {[%emt 0:01:33]} 52. d7 {[%emt 0:00:39]} Ra7 {[%emt 0:00:16]} 53. Ke6 {[%emt 0:01:02]} Rxd7 {[%emt 0:01:08]} 54. Rc8+ {[%emt 0:00:04]} 1-0

[Event "FIDE WCCC U10 2018"]
[Site "Santiago de Compostela"]
[Date "2018.11.10"]
[Round "6"]
[White "Erten, Kerem"]
[Black "Cherniaiev, Tykhon"]
[Result "1/2-1/2"]
[ECO "B20"]
[WhiteElo "1807"]
[BlackElo "1940"]
[Annotator "NA"]
[PlyCount "119"]
[EventDate "2018.11.04"]
[EventType "swiss"]
[EventCountry "ESP"]
[SourceTitle "playchess.com"]
[Source "ChessBase"]
[SourceQuality "1"]
[TimeControl "40/5400+30:1800+30"]

1. e4 {[%emt 0:00:00]} c5 {[%emt 0:00:00]} 2. b3 {[%emt 0:00:00]} e6 {[%emt 0:06:01]} 3. Bb2 {[%emt 0:00:04]} Nc6 {[%emt 0:03:18]} 4. Nf3 {[%emt 0:01:07]} d6 {[%emt 0:01:16]} 5. Bb5 {[%emt 0:00:10]} Nge7 {[%emt 0:02:40]} 6. O-O {[%emt 0:00:44]} a6 {[%emt 0:02:23]} 7. Bxc6+ {[%emt 0:00:11]} Nxc6 {[%emt 0:00:08]} 8. d3 {[%emt 0:00:21]} Bd7 {[%emt 0:09:54]} 9. Nfd2 {[%emt 0:00:34]} e5 {[%emt 0:06:40]} 10. f4 {[%emt 0:00:46]} Be7 {[%emt 0:01:33]} 11. fxe5 {[%emt 0:00:58]} dxe5 {[%emt 0:01:01]} 12. Nc4 {[%emt 0:00:21]} Qc7 {[%emt 0:03:11]} 13. Nc3 {[%emt 0:00:31]} Be6 {[%emt 0:01:15]} 14. Nd5 {[%emt 0:00:33]} Qd8 {[%emt 0:02:16]} 15. Nxe7 {[%emt 0:02:18]} Qxe7 {[%emt 0:00:45]} 16. Nxe5 {[%emt 0:00:31]} Nxe5 {[%emt 0:04:06]} 17. Bxe5 {[%emt 0:00:10]} f6 {[%emt 0:02:05]} 18. Bb2 {[%emt 0:00:55]} O-O-O {[%emt 0:01:04]} 19. Qe1 {[%emt 0:02:37]} h5 {[%emt 0:01:43]} 20. Qf2 {[%emt 0:02:42]} Qc7 {[%emt 0:03:45]} 21. a4 {[%emt 0:03:04]} h4 {[%emt 0:02:49]} 22. h3 {[%emt 0:02:13]} Rh5 {[%emt 0:03:50]} 23. Qf4 {[%emt 0:05:31]} Qb6 {[%emt 0:02:37]} 24. a5 {[%emt 0:03:11]} Qc6 {[%emt 0:02:25]} 25. Rae1 {[%emt 0:08:26]} Rdh8 {[%emt 0:04:09]} 26. Rf3 {[%emt 0:05:59]} Rg5 {[%emt 0:08:08]} 27. Kh1 {[%emt 0:01:43]} Qd7 {[%emt 0:01:08]} 28. Qe3 {[%emt 0:00:35]} Rhh5 {[%emt 0:02:00]} 29. Qf2 {[%emt 0:08:22]} Rg3 {[%emt 0:01:53]} 30. Qf1 {[%emt 0:02:05]} Rg6 {[%emt 0:04:02]} 31. Bc1 {[%emt 0:03:52]} Qc7 {[%emt 0:01:56]} 32. Bd2 {[%emt 0:01:16]} Qd7 {[%emt 0:00:39]} 33. Qf2 {[%emt 0:00:50]} Rg3 {[%emt 0:02:17]} 34. Ree3 {[%emt 0:02:06]} Rxf3 {[%emt 0:01:39]} 35. Rxf3 {[%emt 0:01:56]} Qd8 {[%emt 0:03:58]} 36. Rf4 {[%emt 0:01:23]} Qd4 {[%emt 0:00:13]} 37. Qxd4 {[%emt 0:01:15]} cxd4 {[%emt 0:00:03]} 38. Rf2 {[%emt 0:02:37]} Rc5 {[%emt 0:01:14]} 39. Bb4 {[%emt 0:02:02]} Rc6 {[%emt 0:00:30]} 40. Bf8 {[%emt 0:00:00]} Rc7 {[%emt 0:00:00]} 41. Kg1 {[%emt 0:01:26]} Kd8 {[%emt 0:01:09]} 42. Kf1 {[%emt 0:01:22]} Ke8 {[%emt 0:00:28]} 43. Ba3 {[%emt 0:01:21]} Kf7 {[%emt 0:00:52]} 44. Ke1 {[%emt 0:00:44]} Rd7 {[%emt 0:02:00]} 45. Bc5 {[%emt 0:00:56]} g5 {[%emt 0:00:10]} 46. Kd2 {[%emt 0:01:06]} Kg6 {[%emt 0:00:12]} 47. Rf1 {[%emt 0:05:51]} f5 {[%emt 0:01:15]} 48. exf5+ {[%emt 0:00:10]} Bxf5 {[%emt 0:00:01]} 49. Re1 {[%emt 0:00:20]} Rd5 {[%emt 0:00:27]} 50. Bb6 {[%emt 0:00:13]} Bd7 {[%emt 0:00:34]} 51. Ke2 {[%emt 0:10:36]} Bc6 {[%emt 0:07:28]} 52. Kf2 {[%emt 0:00:08]} g4 {[%emt 0:04:03]} 53. hxg4 {[%emt 0:03:33]} Rg5 {[%emt 0:00:16]} 54. Rh1 {[%emt 0:00:45]} Rxg4 {[%emt 0:00:23]} 55. Rh2 {[%emt 0:00:06]} Rf4+ {[%emt 0:00:35]} 56. Kg1 {[%emt 0:01:19]} Rg4 {[%emt 0:00:11]} 57. Bd8 {[%emt 0:01:16]} h3 {[%emt 0:00:29]} 58. Rxh3 {[%emt 0:01:46]} Rxg2+ {[%emt 0:00:11]} 59. Kf1 {[%emt 0:00:08]} Rxc2 {[%emt 0:00:12]} 60. Rh4 {[%emt 0:00:19]} 1/2-1/2

[Event "FIDE WCCC U10 2018"]
[Site "Santiago de Compostela"]
[Date "2018.11.10"]
[Round "6"]
[White "Hladky, Tadeas"]
[Black "Habans Aguerrea, Javier"]
[Result "0-1"]
[ECO "B13"]
[WhiteElo "1764"]
[BlackElo "1892"]
[Annotator "NA"]
[PlyCount "63"]
[EventDate "2018.11.04"]
[EventType "swiss"]
[EventCountry "ESP"]
[SourceTitle "playchess.com"]
[Source "ChessBase"]
[SourceQuality "1"]
[TimeControl "40/5400+30:1800+30"]

1. e4 {[%emt 0:00:00]} c6 {[%emt 0:00:00]} 2. d4 {[%emt 0:00:00]} d5 {[%emt 0:00:00]} 3. exd5 {[%emt 0:00:01]} cxd5 {[%emt 0:00:04]} 4. Bd3 {[%emt 0:00:11]} Nc6 $11 {[%emt 0:00:04] LiveBook: 2403 Games} 5. c3 {[%emt 0:00:28]} Qc7 {[%emt 0:00:07]} 6. Ne2 {[%emt 0:00:12]} Bg4 {[%emt 0:01:15]} 7. f3 {[%emt 0:01:03]} Bd7 {[%emt 0:03:04]} 8. O-O {[%emt 0:01:15]} e6 {[%emt 0:11:05]} 9. Bf4 {[%emt 0:01:28]} Bd6 {[%emt 0:00:22]} 10. Bxd6 {[%emt 0:00:30]} Qxd6 {[%emt 0:00:04]} 11. f4 {[%emt 0:03:20]} Nge7 {[%emt 0:02:38]} 12. Ng3 {[%emt 0:02:22]} O-O-O {[%emt 0:04:19]} 13. a4 {[%emt 0:02:56]} f6 {[%emt 0:02:59]} 14. Nd2 {[%emt 0:07:57]} Be8 {[%emt 0:08:00]} 15. Nb3 {[%emt 0:01:51]} h5 {[%emt 0:00:28]} 16. Nc5 {[%emt 0:02:50]} h4 {[%emt 0:00:20]} 17. Ne2 {[%emt 0:01:33]} Bf7 {[%emt 0:07:58]} 18. a5 {[%emt 0:04:42]} Rdf8 {[%emt 0:00:50]} 19. b4 {[%emt 0:07:50]} e5 {[%emt 0:03:07]} 20. Rc1 {[%emt 0:13:50]} e4 {[%emt 0:07:00]} 21. Bc2 {[%emt 0:03:11]} h3 {[%emt 0:01:46]} 22. g3 {[%emt 0:06:36]} Bh5 {[%emt 0:01:30]} 23. Qe1 {[%emt 0:03:51]} g5 {[%emt 0:03:24]} 24. Ra1 {[%emt 0:09:29]} Rhg8 {[%emt 0:02:11]} 25. b5 {[%emt 0:01:56]} Nb8 {[%emt 0:00:24]} 26. fxg5 {[%emt 0:05:05]} fxg5 {[%emt 0:01:25]} 27. Bd1 {[%emt 0:05:54]} Bf3 {[%emt 0:04:38]} 28. Nc1 {[%emt 0:01:05]} g4 {[%emt 0:02:03]} 29. Bxf3 {[%emt 0:01:29]} gxf3 {[%emt 0:00:42]} 30. N1b3 {[%emt 0:07:54]} Nf5 {[%emt 0:00:13]} 31. Ra2 {[%emt 0:00:18]} Nxg3 {[%emt 0:01:46]} 32. Kf2 {[%emt 0:02:33]} 0-1

[Event "FIDE WCCC U10 2018"]
[Site "Santiago de Compostela"]
[Date "2018.11.10"]
[Round "6"]
[White "Matsumura, Cocoro"]
[Black "Xue, Haowen"]
[Result "1-0"]
[ECO "B30"]
[WhiteElo "1699"]
[BlackElo "2025"]
[Annotator "NA RC"]
[PlyCount "133"]
[EventDate "2018.11.04"]
[EventType "swiss"]
[EventCountry "ESP"]
[SourceTitle "playchess.com"]
[Source "ChessBase"]
[SourceQuality "1"]
[TimeControl "40/5400+30:1800+30"]

1. e4 {[%emt 0:00:00]} c5 {[%emt 0:00:00]} 2. Nf3 {[%emt 0:00:00]} Nc6 {[%emt 0:00:00]} 3. Bb5 {[%emt 0:00:00]} e6 {[%emt 0:00:00]} 4. O-O {[%emt 0:00:02]} Nge7 {[%emt 0:00:00]} 5. Re1 {[%emt 0:00:07]} a6 {[%emt 0:00:06]} 6. Bf1 {[%emt 0:00:09]} d5 {[%emt 0:00:17]} 7. exd5 {[%emt 0:00:11]} Nxd5 {[%emt 0:00:06]} 8. d4 {[%emt 0:00:04]} Nf6 {[%emt 0:00:16]} 9. Be3 {[%emt 0:00:05]} Be7 {[%emt 0:00:15] B30: Sizilianisch (Rossolimo-Variante)} (9... Nd5 10. Bg5 f6 11. Bc1 cxd4 12. Nxd4 Nxd4 13. Qxd4 Bd6 14. g3 O-O 15. Bg2 Qc7 16. c3 Bc5 17. Qd3 {½-½ (70) Vidit,S (2711)-Lenic,L (2656) chess.com INT 2018}) 10. c4 {[%emt 0:01:38]} cxd4 {[%emt 0:02:22]} 11. Nxd4 {[%emt 0:00:10]} O-O {[%emt 0:01:30]} 12. Nc3 {[%emt 0:00:54]} Qc7 {[%emt 0:01:00]} 13. Qf3 {[%emt 0:05:06]} Bd7 {[%emt 0:06:41]} 14. a3 $146 {[%emt 0:02:56]} ({Vorgänger:} 14. Rad1 Nxd4 15. Bxd4 Bc6 16. Qh3 Rfd8 {1-0 (57) Yang,K (2430)-Pucovski,M (2275) Novi Sad 2018}) 14... Bd6 {[%emt 0:09:41]} 15. h3 {[%emt 0:10:04]} Ne5 16. Qe2 {[%emt 0:00:51]} Rac8 {[%emt 0:07:46]} 17. Rad1 {[%emt 0:01:42]} Ng6 {[%emt 0:18:21]} 18. b4 {[%emt 0:19:22]} Rfd8 {[%emt 0:20:09]} 19. c5 {[%emt 0:07:54]} Be7 {[%emt 0:03:14]} 20. Rc1 {[%emt 0:05:42]} e5 {[%emt 0:04:13]} 21. Nb3 {[%emt 0:00:57]} Be6 {[%emt 0:02:28]} 22. Na5 {[%emt 0:01:40]} Nd5 {[%emt 0:02:54]} 23. Nxd5 {[%emt 0:01:14]} Bxd5 {[%emt 0:00:39]} 24. Nc4 {[%emt 0:00:32]} Be6 {[%emt 0:02:17]} 25. Nb6 {[%emt 0:00:52]} Rb8 {[%emt 0:00:14]} 26. Rcd1 f5 {[%emt 0:03:20]} 27. Qc2 {[%emt 0:05:39]} Qc6 {[%emt 0:01:57]} 28. Bc1 {[%emt 0:19:24]} e4 {[%emt 0:03:14]} 29. Bb2 {[%emt 0:05:32]} Re8 {[%emt 0:06:09]} 30. Bc4 {[%emt 0:04:05]} Bf8 {[%emt 0:03:03]} 31. Qc3 {[%emt 0:03:52]} Rbd8 {[%emt 0:00:49]} 32. Qb3 {[%emt 0:00:45]} Kf7 {[%emt 0:02:16]} 33. a4 {[%emt 0:00:36]} Bxc4 {[%emt 0:00:25]} 34. Qxc4+ {[%emt 0:00:01]} Qe6 {[%emt 0:00:14]} 35. Kf1 {[%emt 0:02:19]} a5 {[%emt 0:00:32]} 36. b5 {[%emt 0:01:39]} Qxc4+ {[%emt 0:00:33]} 37. Nxc4 {[%emt 0:00:01]} Bxc5 {[%emt 0:00:53]} 38. Nxa5 {[%emt 0:00:01]} Rxd1 {[%emt 0:00:31]} 39. Rxd1 {[%emt 0:00:01]} Re7 {[%emt 0:00:15]} 40. Rd5 {[%emt 0:00:00]} Bb4 {[%emt 0:00:00]} 41. Nc4 {[%emt 0:00:36]} Ke6 {[%emt 0:02:19]} 42. Rd8 {[%emt 0:02:08]} Rc7 {[%emt 0:10:28]} 43. Ne3 {[%emt 0:02:25]} Nf4 {[%emt 0:07:24]} 44. g4 {[%emt 0:06:37]} g6 {[%emt 0:03:55]} 45. gxf5+ {[%emt 0:03:20]} gxf5 {[%emt 0:00:13]} 46. Re8+ {[%emt 0:00:53]} Re7 {[%emt 0:04:56]} 47. Rf8 {[%emt 0:02:10]} Nd3 {[%emt 0:02:43] [#]} (47... Rf7 $1 $11 {keeps the balance.} 48. Rxf7 Kxf7) 48. Bh8 {[%emt 0:01:51]} (48. Rf6+ $1 $16 Kd7 49. Bd4 (49. Nxf5 Nxb2 50. Nxe7 Bxe7 $11)) 48... f4 {[%emt 0:02:15]} 49. Rf6+ $1 {[%emt 0:00:29]} Kd7 {[%emt 0:00:09]} 50. Nd5 $1 {[%emt 0:00:39]} Re8 {[%emt 0:00:25]} 51. Nxb4 {[%emt 0:01:22]} Nxb4 {[%emt 0:00:17]} 52. Bg7 {[%emt 0:00:05]} f3 {[%emt 0:01:30]} 53. Rf7+ {[%emt 0:00:44]} Kc8 {[%emt 0:00:28]} 54. Bh6 {[%emt 0:01:46]} Rd8 {[%emt 0:00:40]} 55. Kg1 {[%emt 0:00:45]} Rd1+ {[%emt 0:00:31]} 56. Kh2 {[%emt 0:00:04]} Nd3 $2 {[%emt 0:00:30]} (56... Nd5 $11) 57. Be3 {[%emt 0:04:51]} Rf1 {[%emt 0:00:31]} 58. Bb6 {[%emt 0:06:44]} (58. b6 $142) 58... Nxf2 $2 {[%emt 0:00:29]} (58... Rc1 59. Rxh7 Nb4) 59. Rc7+ {[%emt 0:00:01]} Kb8 {[%emt 0:00:17]} 60. Rxh7 {[%emt 0:00:24]} Kc8 {[%emt 0:00:43]} 61. Rc7+ $2 {[%emt 0:00:04]} Kb8 {[%emt 0:00:13]} 62. Re7 {[%emt 0:01:41]} Kc8 {[%emt 0:00:10]} 63. Rc7+ {[%emt 0:00:52]} (63. a5 $18) 63... Kb8 {[%emt 0:00:07]} 64. Rd7 $18 {[%emt 0:00:17]} Rh1+ {[%emt 0:01:19]} 65. Kg3 {[%emt 0:00:04]} Rd1 {[%emt 0:00:09]} 66. Re7 {[%emt 0:01:29]} Nh1+ {[%emt 0:00:26]} 67. Kh2 {[%emt 0:00:13]} 1-0

[Event "FIDE WCCC U10 2018"]
[Site "Santiago de Compostela"]
[Date "2018.11.10"]
[Round "6"]
[White "Orujov, Farid"]
[Black "Zhao, Erick"]
[Result "0-1"]
[ECO "B42"]
[WhiteElo "1643"]
[BlackElo "1957"]
[Annotator "NA RC"]
[PlyCount "102"]
[EventDate "2018.11.04"]
[EventType "swiss"]
[EventCountry "ESP"]
[SourceTitle "playchess.com"]
[Source "ChessBase"]
[SourceQuality "1"]
[TimeControl "40/5400+30:1800+30"]

1. e4 c5 2. Nf3 e6 3. d4 cxd4 4. Nxd4 a6 5. Bd3 Qc7 6. O-O Nf6 7. Qe2 d6 8. c4 Be7 9. Nc3 Nbd7 {LiveBook: 94 Games} 10. f4 b6 11. b3 {B42: Sicilian: Kan Variation: 5 Bd3} Bb7 12. Bb2 O-O 13. Rac1 Rfe8 {[#]} 14. Rfd1 $146 ({Predecessor:} 14. Bb1 Bf8 15. Nf3 g6 16. Kh1 Bg7 17. Ng5 h6 18. Nh3 Rad8 19. Nf2 Qb8 20. Rcd1 Nc5 {1-0 (57) Lobron,E (2528)-Hera,I (2619) Germany 2016}) 14... Rac8 15. Bb1 Qb8 16. Nf3 Nf8 17. e5 dxe5 18. Nxe5 Ng6 19. Bxg6 hxg6 20. Na4 Ba8 21. Nd7 Nxd7 22. Rxd7 Bc6 23. Be5 Qa8 24. Rxe7 Rxe7 25. Nxb6 Qa7 26. c5 Rd8 27. Rd1 Ree8 28. Rxd8 Rxd8 29. Qe3 Qb7 30. Qe2 Bxg2 31. Bd6 Bf3 32. Qe3 Bh1 33. Qe2 Rxd6 34. cxd6 Qxb6+ 35. Kxh1 Qxd6 36. Kg2 a5 37. Qf2 Qd5+ 38. Kg3 g5 39. fxg5 Qxg5+ 40. Kh3 e5 41. a4 f5 42. Qe2 e4 43. b4 axb4 44. a5 b3 45. a6 {[#]} b2 $1 46. a7 Qh6+ 47. Kg2 b1=Q 48. a8=Q+ Kh7 49. Qd5 Qg5+ 50. Kh3 Qf1+ 51. Qxf1 Qg4# {Qdd1} 0-1